[Event "Live Chess"]
[Site "Chess.com"]
[Date "2023.05.21"]
[Round "-"]
[White "raminguy"]
[Black "diana21strabt"]
[Result "1-0"]
[WhiteElo "1946"]
[BlackElo "1765"]
[TimeControl "300"]
[EndTime "6:39:16 PDT"]
[Termination "raminguy won by resignation"]

1. d4 {[%clk 0:04:59.4]} 1... Nf6 {[%clk 0:04:57.5]} 2. Nc3 {[%clk 0:04:58.9]}
2... e6 {[%clk 0:04:54.8]} 3. e4 {[%clk 0:04:57.5]} 3... Bb4 {[%clk 0:04:52.3]}
4. e5 {[%clk 0:04:56.7]} 4... Nd5 {[%clk 0:04:50.6]} 5. Qg4 {[%clk 0:04:56]}
5... Bxc3+ {[%clk 0:04:31.1]} 6. bxc3 {[%clk 0:04:54.4]} 6... Kf8 {[%clk
0:04:22.7]} 7. c4 {[%clk 0:04:53.2]} 7... Ne7 {[%clk 0:04:18.7]} 8. Nf3 {[%clk
0:04:44.6]} 8... h5 {[%clk 0:04:15.8]} 9. Qh4 {[%clk 0:04:36.5]} 9... Nbc6
{[%clk 0:04:11.4]} 10. Bg5 {[%clk 0:04:34.6]} 10... Nb4 {[%clk 0:03:57.9]} 11.
Bd3 {[%clk 0:04:27.7]} 11... Nxd3+ {[%clk 0:03:55.3]} 12. cxd3 {[%clk
0:04:27.6]} 12... c6 {[%clk 0:03:53.6]} 13. O-O {[%clk 0:04:26.6]} 13... Qe8
{[%clk 0:03:46.5]} 14. Bxe7+ {[%clk 0:04:08]} 14... Qxe7 {[%clk 0:03:36.1]} 15.
Qf4 {[%clk 0:04:07.4]} 15... b6 {[%clk 0:03:14.3]} 16. Ng5 {[%clk 0:04:05.1]}
16... Bb7 {[%clk 0:03:09.8]} 17. Rfe1 {[%clk 0:04:02]} 17... Kg8 {[%clk
0:03:03.9]} 18. Re3 {[%clk 0:03:57.3]} 18... f6 {[%clk 0:02:59.5]} 19. exf6
{[%clk 0:03:53.7]} 19... Qxf6 {[%clk 0:02:57.4]} 20. Qh4 {[%clk 0:03:45.6]}
20... Rf8 {[%clk 0:02:49.2]} 21. Rf3 {[%clk 0:03:42.7]} 21... Qe7 {[%clk
0:02:32]} 22. Rxf8+ {[%clk 0:03:32.1]} 22... Qxf8 {[%clk 0:02:30.2]} 23. Re1
{[%clk 0:03:31.8]} 23... c5 {[%clk 0:02:25.7]} 24. Re3 {[%clk 0:03:18.2]} 24...
cxd4 {[%clk 0:02:23.4]} 25. Qxd4 {[%clk 0:03:14.1]} 25... Qe7 {[%clk 0:02:14.9]}
26. Ne4 {[%clk 0:03:02.9]} 26... h4 {[%clk 0:02:05.9]} 27. Nd6 {[%clk
0:02:52.1]} 27... Qg5 {[%clk 0:02:00.4]} 28. Nxb7 {[%clk 0:02:48]} 28... h3
{[%clk 0:01:57.5]} 29. g3 {[%clk 0:01:59.5]} 29... Qh5 {[%clk 0:01:56.2]} 30. f3
{[%clk 0:01:55.2]} 30... Qf7 {[%clk 0:01:48.3]} 31. Nd6 {[%clk 0:01:51.4]} 31...
Qe7 {[%clk 0:01:44.9]} 32. Qf4 {[%clk 0:01:40]} 32... Rh6 {[%clk 0:01:38.5]} 33.
Nf5 {[%clk 0:01:36.1]} 33... Qf6 {[%clk 0:01:15.3]} 34. Nxh6+ {[%clk 0:01:34.5]}
34... Qxh6 {[%clk 0:01:10.8]} 35. Qxh6 {[%clk 0:01:33.4]} 35... gxh6 {[%clk
0:01:10.1]} 36. a4 {[%clk 0:01:32]} 36... Kf7 {[%clk 0:01:09]} 37. Re4 {[%clk
0:01:30.3]} 37... Kf6 {[%clk 0:01:07.6]} 38. Rh4 {[%clk 0:01:29.3]} 38... Kg5
{[%clk 0:01:06.8]} 39. Rxh3 {[%clk 0:01:27.9]} 39... h5 {[%clk 0:01:06.2]} 40.
Rh4 {[%clk 0:01:27.1]} 40... d6 {[%clk 0:01:04.1]} 41. Re4 {[%clk 0:01:25.6]}
41... e5 {[%clk 0:01:02.7]} 42. d4 {[%clk 0:01:24.1]} 42... Kf5 {[%clk
0:01:00.8]} 43. dxe5 {[%clk 0:01:22.8]} 43... dxe5 {[%clk 0:01:00.2]} 44. Kf2
{[%clk 0:01:21.9]} 44... a6 {[%clk 0:00:58.3]} 45. Ke3 {[%clk 0:01:20.9]} 45...
a5 {[%clk 0:00:54.2]} 46. h3 {[%clk 0:01:19.9]} 46... h4 {[%clk 0:00:52.5]} 47.
g4+ {[%clk 0:01:19.1]} 47... Kf6 {[%clk 0:00:50.7]} 48. Kd3 {[%clk 0:01:16.2]}
1-0

[Event "Live Chess"]
[Site "Chess.com"]
[Date "2023.05.21"]
[Round "-"]
[White "Leonid_Starozhilov"]
[Black "LL220284LL"]
[Result "0-1"]
[WhiteElo "2623"]
[BlackElo "2286"]
[TimeControl "300"]
[EndTime "6:39:18 PDT"]
[Termination "LL220284LL won on time"]

1. b3 {[%clk 0:04:59]} 1... d5 {[%clk 0:04:58.8]} 2. Bb2 {[%clk 0:04:58.1]} 2...
Bg4 {[%clk 0:04:58.5]} 3. h3 {[%clk 0:04:57.1]} 3... Bh5 {[%clk 0:04:57.6]} 4.
Nf3 {[%clk 0:04:56.1]} 4... Nd7 {[%clk 0:04:54.9]} 5. c4 {[%clk 0:04:54.1]} 5...
c6 {[%clk 0:04:53.6]} 6. e3 {[%clk 0:04:52.9]} 6... Ngf6 {[%clk 0:04:51.7]} 7.
Be2 {[%clk 0:04:49.1]} 7... e6 {[%clk 0:04:50.7]} 8. O-O {[%clk 0:04:42.2]} 8...
Bd6 {[%clk 0:04:49.2]} 9. d4 {[%clk 0:04:40]} 9... O-O {[%clk 0:04:47.7]} 10.
Nbd2 {[%clk 0:04:35.5]} 10... Re8 {[%clk 0:04:46.4]} 11. Bd3 {[%clk 0:04:22.3]}
11... Qb8 {[%clk 0:04:43]} 12. Re1 {[%clk 0:04:20.7]} 12... e5 {[%clk
0:04:36.5]} 13. dxe5 {[%clk 0:04:15.4]} 13... Nxe5 {[%clk 0:04:36.4]} 14. Be2
{[%clk 0:04:13.2]} 14... dxc4 {[%clk 0:04:22.4]} 15. Nxc4 {[%clk 0:03:52.6]}
15... Nxc4 {[%clk 0:04:17.9]} 16. Bxc4 {[%clk 0:03:47.6]} 16... Bh2+ {[%clk
0:04:07.8]} 17. Kh1 {[%clk 0:03:44.7]} 17... Be5 {[%clk 0:04:06]} 18. Bxe5
{[%clk 0:03:40.3]} 18... Bxf3 {[%clk 0:04:04.9]} 19. Bxb8 {[%clk 0:03:37.3]}
19... Bxd1 {[%clk 0:04:03.7]} 20. Bd6 {[%clk 0:03:19.3]} 20... Bc2 {[%clk
0:03:58.2]} 21. Rac1 {[%clk 0:03:15.5]} 21... Bf5 {[%clk 0:03:50.1]} 22. f3
{[%clk 0:03:12.2]} 22... Rad8 {[%clk 0:03:47.4]} 23. Bb4 {[%clk 0:02:54.6]}
23... Bd3 {[%clk 0:03:45.2]} 24. e4 {[%clk 0:02:50.1]} 24... Bxc4 {[%clk
0:03:43]} 25. Rxc4 {[%clk 0:02:46.7]} 25... Rd3 {[%clk 0:03:40.6]} 26. Rc3
{[%clk 0:02:42.3]} 26... Red8 {[%clk 0:03:38.8]} 27. Rec1 {[%clk 0:02:37.6]}
27... Nh5 {[%clk 0:03:35.2]} 28. Kh2 {[%clk 0:02:32]} 28... Nf4 {[%clk
0:03:33.9]} 29. R3c2 {[%clk 0:02:16.8]} 29... h5 {[%clk 0:03:30.5]} 30. Be1
{[%clk 0:02:13.4]} 30... R8d7 {[%clk 0:03:19.3]} 31. b4 {[%clk 0:02:11.4]} 31...
Ra3 {[%clk 0:03:10.9]} 32. h4 {[%clk 0:02:07]} 32... Rdd3 {[%clk 0:03:03]} 33.
b5 {[%clk 0:02:00.8]} 33... cxb5 {[%clk 0:02:58.1]} 34. Bg3 {[%clk 0:01:59.3]}
34... Ne6 {[%clk 0:02:54.5]} 35. Be5 {[%clk 0:01:51.2]} 35... Rd8 {[%clk
0:02:45.9]} 36. Kg3 {[%clk 0:01:47.5]} 36... a6 {[%clk 0:02:42.9]} 37. Rc8
{[%clk 0:01:43.8]} 37... Rd3 {[%clk 0:02:41.2]} 38. Rxd8+ {[%clk 0:01:41.2]}
38... Rxd8 {[%clk 0:02:41.1]} 39. Rc2 {[%clk 0:01:35.2]} 39... f6 {[%clk
0:02:38.5]} 40. Bb2 {[%clk 0:01:29.5]} 40... Kf7 {[%clk 0:02:37.8]} 41. Kf2
{[%clk 0:01:26]} 41... Rd7 {[%clk 0:02:36.6]} 42. Ke3 {[%clk 0:01:24.3]} 42...
Rc7 {[%clk 0:02:35.6]} 43. Rd2 {[%clk 0:01:22.8]} 43... b4 {[%clk 0:02:27.8]}
44. g4 {[%clk 0:01:20]} 44... hxg4 {[%clk 0:02:26.4]} 45. fxg4 {[%clk
0:01:19.3]} 45... a5 {[%clk 0:02:24.7]} 46. e5 {[%clk 0:01:18]} 46... fxe5
{[%clk 0:02:22.1]} 47. Bxe5 {[%clk 0:01:16.7]} 47... Re7 {[%clk 0:02:19.4]} 48.
Rf2+ {[%clk 0:01:03]} 48... Kg8 {[%clk 0:02:15.8]} 49. Bd6 {[%clk 0:01:01.2]}
49... Re8 {[%clk 0:02:15.1]} 50. Ke4 {[%clk 0:00:53.3]} 50... Nc5+ {[%clk
0:02:11]} 51. Kd5 {[%clk 0:00:51.1]} 51... Ne4 {[%clk 0:02:09.1]} 52. Rg2 {[%clk
0:00:44.5]} 52... Nc3+ {[%clk 0:02:06.4]} 53. Kc4 {[%clk 0:00:41.4]} 53... Rc8+
{[%clk 0:02:00.8]} 54. Kb3 {[%clk 0:00:40.2]} 54... Ne4 {[%clk 0:01:57.2]} 55.
Be5 {[%clk 0:00:37.8]} 55... Rc5 {[%clk 0:01:56.2]} 56. Bb2 {[%clk 0:00:31.6]}
56... Rd5 {[%clk 0:01:54.9]} 57. h5 {[%clk 0:00:24.7]} 57... b5 {[%clk
0:01:53.7]} 58. g5 {[%clk 0:00:19.3]} 58... Nd2+ {[%clk 0:01:50]} 59. Kc2 {[%clk
0:00:17.7]} 59... Nc4 {[%clk 0:01:48.9]} 60. Bc1 {[%clk 0:00:15.3]} 60... Rc5
{[%clk 0:01:46.7]} 61. Kd3 {[%clk 0:00:12.5]} 61... b3 {[%clk 0:01:46.2]} 62.
axb3 {[%clk 0:00:11.4]} 62... Ne5+ {[%clk 0:01:45.3]} 63. Ke4 {[%clk 0:00:10.9]}
63... Rxc1 {[%clk 0:01:43.3]} 64. Kxe5 {[%clk 0:00:10.4]} 64... Rc3 {[%clk
0:01:42.9]} 65. Ra2 {[%clk 0:00:08.6]} 65... Rxb3 {[%clk 0:01:39.9]} 66. Rxa5
{[%clk 0:00:07.5]} 66... Rg3 {[%clk 0:01:39.3]} 67. g6 {[%clk 0:00:06.8]} 67...
Kf8 {[%clk 0:01:37.2]} 68. Ke6 {[%clk 0:00:05.4]} 68... Re3+ {[%clk 0:01:35.8]}
69. Kd6 {[%clk 0:00:04.9]} 69... Rd3+ {[%clk 0:01:33.9]} 70. Ke6 {[%clk
0:00:04.1]} 70... Rd8 {[%clk 0:01:33]} 71. Rxb5 {[%clk 0:00:03.5]} 71... Re8+
{[%clk 0:01:32.4]} 72. Kf5 {[%clk 0:00:03.2]} 72... Rc8 {[%clk 0:01:31.1]} 73.
Re5 {[%clk 0:00:03.1]} 73... Kg8 {[%clk 0:01:29.6]} 74. Kg5 {[%clk 0:00:03]}
74... Rf8 {[%clk 0:01:28.6]} 75. h6 {[%clk 0:00:02.9]} 75... gxh6+ {[%clk
0:01:26.1]} 76. Kxh6 {[%clk 0:00:02.8]} 76... Rc8 {[%clk 0:01:25.2]} 77. Re7
{[%clk 0:00:02.4]} 77... Kf8 {[%clk 0:01:22.2]} 78. Rg7 {[%clk 0:00:02.3]} 78...
Rc1 {[%clk 0:01:20.6]} 79. Rf7+ {[%clk 0:00:02.2]} 79... Ke8 {[%clk 0:01:19.6]}
80. Kg7 {[%clk 0:00:02.1]} 80... Rg1 {[%clk 0:01:18]} 81. Rf8+ {[%clk 0:00:02]}
81... Ke7 {[%clk 0:01:17.2]} 82. Rf7+ {[%clk 0:00:01.9]} 82... Ke6 {[%clk
0:01:16.7]} 83. Rf6+ {[%clk 0:00:01.8]} 83... Ke7 {[%clk 0:01:16.2]} 84. Rf7+
{[%clk 0:00:01.2]} 84... Kd8 {[%clk 0:01:15.7]} 85. Rf6 {[%clk 0:00:01.1]} 85...
Kd7 {[%clk 0:01:14.6]} 86. Kf7 {[%clk 0:00:01]} 86... Kc8 {[%clk 0:01:12.9]} 87.
g7 {[%clk 0:00:00.9]} 87... Kc7 {[%clk 0:01:12.2]} 88. g8=Q {[%clk 0:00:00.8]}
88... Kb7 {[%clk 0:01:11.5]} 89. Qg7 {[%clk 0:00:00.4]} 89... Rd1 {[%clk
0:01:11.4]} 0-1

[Event "Live Chess"]
[Site "Chess.com"]
[Date "2023.05.21"]
[Round "-"]
[White "wot-not"]
[Black "matt1979"]
[Result "0-1"]
[WhiteElo "1540"]
[BlackElo "1533"]
[TimeControl "300"]
[EndTime "6:39:28 PDT"]
[Termination "matt1979 won by resignation"]

1. e4 {[%clk 0:04:55.9]} 1... d6 {[%clk 0:04:57.4]} 2. f4 {[%clk 0:04:54.9]}
2... e5 {[%clk 0:04:47.4]} 3. Nf3 {[%clk 0:04:53.9]} 3... Nd7 {[%clk 0:04:44.6]}
4. fxe5 {[%clk 0:04:52.5]} 4... Nxe5 {[%clk 0:04:41]} 5. Nxe5 {[%clk 0:04:51.5]}
5... dxe5 {[%clk 0:04:39.9]} 6. Qf3 {[%clk 0:04:44.1]} 6... Nf6 {[%clk
0:04:35.7]} 7. Bc4 {[%clk 0:04:38.7]} 7... Bc5 {[%clk 0:04:29.8]} 8. d3 {[%clk
0:04:36.2]} 8... O-O {[%clk 0:04:27.8]} 9. Be3 {[%clk 0:04:34.7]} 9... Bxe3
{[%clk 0:04:23.7]} 10. Qxe3 {[%clk 0:04:34.1]} 10... Bg4 {[%clk 0:04:17.4]} 11.
O-O {[%clk 0:04:31]} 11... c6 {[%clk 0:03:57.6]} 12. Nd2 {[%clk 0:04:27]} 12...
b5 {[%clk 0:03:55.8]} 13. Bb3 {[%clk 0:04:23.9]} 13... a5 {[%clk 0:03:53.5]} 14.
a4 {[%clk 0:04:22]} 14... b4 {[%clk 0:03:48.9]} 15. Nf3 {[%clk 0:04:17.7]} 15...
Nd7 {[%clk 0:03:37.3]} 16. h3 {[%clk 0:04:08.9]} 16... Bh5 {[%clk 0:03:34.6]}
17. c3 {[%clk 0:03:49.6]} 17... c5 {[%clk 0:03:29]} 18. cxb4 {[%clk 0:03:47.9]}
18... cxb4 {[%clk 0:03:25.8]} 19. Rac1 {[%clk 0:03:28.9]} 19... Rc8 {[%clk
0:03:22.3]} 20. Rxc8 {[%clk 0:03:24.1]} 20... Qxc8 {[%clk 0:03:21.2]} 21. Rc1
{[%clk 0:03:23]} 21... Qb7 {[%clk 0:03:14.4]} 22. Bd5 {[%clk 0:03:11.8]} 22...
Qb6 {[%clk 0:03:10]} 23. Qxb6 {[%clk 0:02:59.9]} 23... Nxb6 {[%clk 0:03:08.6]}
24. Bc6 {[%clk 0:02:54]} 24... Rc8 {[%clk 0:03:02.7]} 25. Nxe5 {[%clk 0:02:52]}
25... Nxa4 {[%clk 0:02:54.3]} 26. Ra1 {[%clk 0:02:17.7]} 26... Nxb2 {[%clk
0:02:45.9]} 27. Rxa5 {[%clk 0:02:16.6]} 27... f6 {[%clk 0:02:39.4]} 28. Bd5+
{[%clk 0:02:06.1]} 28... Kf8 {[%clk 0:02:33.5]} 29. Nd7+ {[%clk 0:01:58.1]}
29... Ke8 {[%clk 0:02:26.5]} 30. Nb6 {[%clk 0:01:52.8]} 30... Rc1+ {[%clk
0:02:20.3]} 31. Kh2 {[%clk 0:01:51.2]} 31... Nxd3 {[%clk 0:02:13.1]} 32. Ra8+
{[%clk 0:01:47.6]} 32... Ke7 {[%clk 0:02:08.9]} 33. Ra7+ {[%clk 0:01:41.5]}
33... Kd8 {[%clk 0:01:54.7]} 34. Rd7+ {[%clk 0:01:31.7]} 34... Ke8 {[%clk
0:01:51.5]} 35. Bc6 {[%clk 0:01:24.8]} 35... Rxc6 {[%clk 0:01:46.6]} 36. Rxd3
{[%clk 0:01:19.3]} 36... Rxb6 {[%clk 0:01:44]} 37. Rb3 {[%clk 0:01:14.1]} 37...
Bf7 {[%clk 0:01:42.5]} 38. Rb2 {[%clk 0:01:11]} 38... b3 {[%clk 0:01:40.6]} 39.
Kg3 {[%clk 0:01:10.7]} 39... Rc6 {[%clk 0:01:38.2]} 40. Kf4 {[%clk 0:01:09.5]}
40... Rc2 {[%clk 0:01:36.9]} 0-1

[Event "Live Chess"]
[Site "Chess.com"]
[Date "2023.05.21"]
[Round "-"]
[White "GEMdzq"]
[Black "GMMickeyAdams"]
[Result "0-1"]
[WhiteElo "2247"]
[BlackElo "2785"]
[TimeControl "300"]
[EndTime "6:39:31 PDT"]
[Termination "GMMickeyAdams won by resignation"]

1. e4 {[%clk 0:04:58.5]} 1... e5 {[%clk 0:04:57.3]} 2. Nf3 {[%clk 0:04:57.1]}
2... Nc6 {[%clk 0:04:56.4]} 3. Bb5 {[%clk 0:04:56.4]} 3... Nge7 {[%clk
0:04:53.9]} 4. O-O {[%clk 0:04:54.1]} 4... Ng6 {[%clk 0:04:51]} 5. c3 {[%clk
0:04:53.7]} 5... a6 {[%clk 0:04:49.1]} 6. Ba4 {[%clk 0:04:52.3]} 6... Be7 {[%clk
0:04:46.9]} 7. d4 {[%clk 0:04:51.2]} 7... b5 {[%clk 0:04:43.2]} 8. Bb3 {[%clk
0:04:40.1]} 8... d6 {[%clk 0:04:41.6]} 9. a4 {[%clk 0:04:37.1]} 9... Bd7 {[%clk
0:04:37.3]} 10. Bd5 {[%clk 0:04:30.2]} 10... Rb8 {[%clk 0:04:29.8]} 11. axb5
{[%clk 0:04:26.5]} 11... axb5 {[%clk 0:04:28.3]} 12. Ra6 {[%clk 0:04:24.4]}
12... Rb6 {[%clk 0:04:26.1]} 13. Rxb6 {[%clk 0:04:21.9]} 13... cxb6 {[%clk
0:04:25]} 14. Na3 {[%clk 0:04:13.4]} 14... b4 {[%clk 0:04:22.3]} 15. cxb4 {[%clk
0:04:11.7]} 15... O-O {[%clk 0:04:14]} 16. Qb3 {[%clk 0:04:09.4]} 16... Nxd4
{[%clk 0:04:07.5]} 17. Nxd4 {[%clk 0:04:08]} 17... exd4 {[%clk 0:04:06.7]} 18.
Nc2 {[%clk 0:04:06.4]} 18... Bf6 {[%clk 0:04:05.6]} 19. b5 {[%clk 0:03:56.7]}
19... Ne7 {[%clk 0:04:03.7]} 20. Bc4 {[%clk 0:03:53]} 20... Qc7 {[%clk
0:03:37.9]} 21. Qd3 {[%clk 0:03:47.2]} 21... Rc8 {[%clk 0:03:33.9]} 22. b3
{[%clk 0:03:46.2]} 22... Bxb5 {[%clk 0:03:30.7]} 23. Na3 {[%clk 0:03:21.3]}
23... Bxc4 {[%clk 0:03:29.3]} 24. bxc4 {[%clk 0:03:21.2]} 24... Qc5 {[%clk
0:03:23.1]} 25. Bb2 {[%clk 0:03:18.7]} 25... Nc6 {[%clk 0:03:21.1]} 26. Rc1
{[%clk 0:02:57.5]} 26... Qb4 {[%clk 0:03:13.2]} 27. Rb1 {[%clk 0:02:45]} 27...
Ne5 {[%clk 0:02:58.5]} 28. Qg3 {[%clk 0:02:37.9]} 28... Qc5 {[%clk 0:02:44.4]}
29. f4 {[%clk 0:02:21.6]} 29... Nxc4 {[%clk 0:02:31.4]} 30. Nxc4 {[%clk
0:02:18.2]} 30... Qxc4 {[%clk 0:02:30.1]} 31. e5 {[%clk 0:02:05]} 31... dxe5
{[%clk 0:02:23.5]} 32. fxe5 {[%clk 0:02:04.7]} 32... Be7 {[%clk 0:02:21.7]} 33.
Rc1 {[%clk 0:01:57.1]} 33... Qe6 {[%clk 0:02:19.8]} 34. Rxc8+ {[%clk 0:01:51.6]}
34... Qxc8 {[%clk 0:02:18]} 35. Bxd4 {[%clk 0:01:44.2]} 35... Qc1+ {[%clk
0:02:15.4]} 36. Kf2 {[%clk 0:01:43.3]} 36... Qd2+ {[%clk 0:02:14.9]} 0-1

[Event "Live Chess"]
[Site "Chess.com"]
[Date "2023.05.21"]
[Round "-"]
[White "Tiltador"]
[Black "ameetghasi100"]
[Result "0-1"]
[WhiteElo "841"]
[BlackElo "2580"]
[TimeControl "300"]
[EndTime "6:39:34 PDT"]
[Termination "ameetghasi100 won by checkmate"]

1. e4 {[%clk 0:04:55.3]} 1... d6 {[%clk 0:04:59.9]} 2. Nf3 {[%clk 0:04:54]} 2...
Nf6 {[%clk 0:04:59.8]} 3. Bb5+ {[%clk 0:04:47.6]} 3... c6 {[%clk 0:04:58]} 4.
Be2 {[%clk 0:04:44.7]} 4... e5 {[%clk 0:04:57.9]} 5. O-O {[%clk 0:04:43.3]} 5...
Be7 {[%clk 0:04:57]} 6. d3 {[%clk 0:04:41.9]} 6... h6 {[%clk 0:04:54.1]} 7. Nc3
{[%clk 0:04:40.7]} 7... g5 {[%clk 0:04:53.6]} 8. Nd2 {[%clk 0:04:33.1]} 8...
Nbd7 {[%clk 0:04:51]} 9. Nb3 {[%clk 0:04:32]} 9... Nf8 {[%clk 0:04:49.7]} 10. f3
{[%clk 0:04:29.7]} 10... Ng6 {[%clk 0:04:49.6]} 11. d4 {[%clk 0:04:20.9]} 11...
Nh5 {[%clk 0:04:48.5]} 12. dxe5 {[%clk 0:04:18.9]} 12... Nxe5 {[%clk 0:04:48.4]}
13. Nd4 {[%clk 0:04:14.4]} 13... Nf4 {[%clk 0:04:38.5]} 14. Bxf4 {[%clk
0:04:07.6]} 14... gxf4 {[%clk 0:04:38.4]} 15. Nf5 {[%clk 0:04:02.9]} 15... Bxf5
{[%clk 0:04:35.3]} 16. exf5 {[%clk 0:04:01]} 16... d5 {[%clk 0:04:35.2]} 17. a3
{[%clk 0:03:56]} 17... Bc5+ {[%clk 0:04:34.5]} 18. Kh1 {[%clk 0:03:53]} 18...
Be3 {[%clk 0:04:33.8]} 19. Bd3 {[%clk 0:03:37.7]} 19... Qg5 {[%clk 0:04:29.8]}
20. b4 {[%clk 0:03:28.9]} 20... O-O-O {[%clk 0:04:28.1]} 21. a4 {[%clk
0:03:25.5]} 21... Rdg8 {[%clk 0:04:27.2]} 22. Qe2 {[%clk 0:03:19.6]} 22... Qh4
{[%clk 0:04:26.4]} 23. b5 {[%clk 0:03:08]} 23... Rg5 {[%clk 0:04:25.4]} 24. bxc6
{[%clk 0:03:02]} 24... Qxh2+ {[%clk 0:04:21]} 25. Kxh2 {[%clk 0:02:55.7]} 25...
Rh5# {[%clk 0:04:20.9]} 0-1

[Event "Live Chess"]
[Site "Chess.com"]
[Date "2023.05.21"]
[Round "-"]
[White "LiamClery2020"]
[Black "Chesscoach_Golichenko"]
[Result "0-1"]
[WhiteElo "1966"]
[BlackElo "2630"]
[TimeControl "300"]
[EndTime "6:40:11 PDT"]
[Termination "Chesscoach_Golichenko won by resignation"]

1. e4 {[%clk 0:04:56.4]} 1... Nf6 {[%clk 0:04:57.2]} 2. e5 {[%clk 0:04:51]} 2...
Nd5 {[%clk 0:04:54.8]} 3. d4 {[%clk 0:04:50.3]} 3... d6 {[%clk 0:04:51.2]} 4.
Nf3 {[%clk 0:04:49.5]} 4... g6 {[%clk 0:04:47.2]} 5. c4 {[%clk 0:04:45.9]} 5...
Nb6 {[%clk 0:04:45.1]} 6. exd6 {[%clk 0:04:44.8]} 6... cxd6 {[%clk 0:04:40.5]}
7. a4 {[%clk 0:04:43]} 7... Bg7 {[%clk 0:04:33.3]} 8. a5 {[%clk 0:04:38.5]} 8...
N6d7 {[%clk 0:04:31.2]} 9. Nc3 {[%clk 0:04:37.3]} 9... O-O {[%clk 0:04:28.8]}
10. Be3 {[%clk 0:04:35.7]} 10... e5 {[%clk 0:04:25.8]} 11. d5 {[%clk 0:04:32.8]}
11... h6 {[%clk 0:04:20.8]} 12. Qd2 {[%clk 0:04:28.1]} 12... Kh7 {[%clk
0:04:17.8]} 13. Bd3 {[%clk 0:04:24.6]} 13... f5 {[%clk 0:04:10.4]} 14. Qc2
{[%clk 0:04:18.4]} 14... e4 {[%clk 0:04:07.9]} 15. Nxe4 {[%clk 0:04:17.1]} 15...
fxe4 {[%clk 0:04:05.8]} 16. Bxe4 {[%clk 0:04:17]} 16... Qf6 {[%clk 0:03:49.8]}
17. Bd4 {[%clk 0:04:15.3]} 17... Ne5 {[%clk 0:03:48.2]} 18. Bxe5 {[%clk
0:04:06.6]} 18... dxe5 {[%clk 0:03:46.8]} 19. O-O {[%clk 0:04:05.9]} 19... Bf5
{[%clk 0:03:44.2]} 20. Bxf5 {[%clk 0:04:04.6]} 20... gxf5 {[%clk 0:03:42.1]} 21.
Rad1 {[%clk 0:04:02.6]} 21... Nd7 {[%clk 0:03:40.4]} 22. Rfe1 {[%clk 0:04:00.6]}
22... e4 {[%clk 0:03:39.1]} 23. Nd4 {[%clk 0:03:59.8]} 23... Rac8 {[%clk
0:03:36.4]} 24. b3 {[%clk 0:03:57.2]} 24... Rg8 {[%clk 0:03:35.3]} 25. Ne6
{[%clk 0:03:55.9]} 25... Ne5 {[%clk 0:03:30.2]} 26. Qe2 {[%clk 0:03:49.6]} 26...
Bf8 {[%clk 0:03:27]} 27. f3 {[%clk 0:03:45.8]} 27... Nxf3+ {[%clk 0:03:24.8]}
0-1

[Event "Live Chess"]
[Site "Chess.com"]
[Date "2023.05.21"]
[Round "-"]
[White "Olisingapore"]
[Black "Hacker_2009"]
[Result "1-0"]
[WhiteElo "1789"]
[BlackElo "1917"]
[TimeControl "300"]
[EndTime "6:40:23 PDT"]
[Termination "Olisingapore won by resignation"]

1. d4 {[%clk 0:04:54.7]} 1... Nf6 {[%clk 0:04:57]} 2. c4 {[%clk 0:04:54.1]} 2...
e6 {[%clk 0:04:55.7]} 3. g3 {[%clk 0:04:52.1]} 3... d5 {[%clk 0:04:54.7]} 4. Bg2
{[%clk 0:04:51.8]} 4... Be7 {[%clk 0:04:51]} 5. Nf3 {[%clk 0:04:51.4]} 5... O-O
{[%clk 0:04:49.5]} 6. O-O {[%clk 0:04:49.7]} 6... b6 {[%clk 0:04:48.6]} 7. Qc2
{[%clk 0:04:47.3]} 7... Bb7 {[%clk 0:04:47.2]} 8. Bg5 {[%clk 0:04:39.9]} 8... c5
{[%clk 0:04:45.5]} 9. Nbd2 {[%clk 0:04:27.7]} 9... cxd4 {[%clk 0:04:42.2]} 10.
Nxd4 {[%clk 0:04:20.5]} 10... Nc6 {[%clk 0:04:40.2]} 11. Nxc6 {[%clk 0:04:09.5]}
11... Bxc6 {[%clk 0:04:37.4]} 12. Rfd1 {[%clk 0:04:06.6]} 12... Qc7 {[%clk
0:04:33.6]} 13. Bxf6 {[%clk 0:04:03.1]} 13... Bxf6 {[%clk 0:04:31.5]} 14. cxd5
{[%clk 0:04:01.7]} 14... exd5 {[%clk 0:04:29.1]} 15. Bxd5 {[%clk 0:03:59.9]}
15... Rac8 {[%clk 0:04:28.1]} 16. Rac1 {[%clk 0:03:55.3]} 16... Bxd5 {[%clk
0:04:20.6]} 17. Qxc7 {[%clk 0:03:53.1]} 17... Rxc7 {[%clk 0:04:20.5]} 18. Rxc7
{[%clk 0:03:51.6]} 18... a5 {[%clk 0:04:17.4]} 19. b3 {[%clk 0:03:49.7]} 19...
Rd8 {[%clk 0:04:14.8]} 20. Nf3 {[%clk 0:03:34.8]} 20... g6 {[%clk 0:04:09.4]}
21. e4 {[%clk 0:03:32.4]} 21... Bxe4 {[%clk 0:04:05.3]} 22. Rxd8+ {[%clk
0:03:29.9]} 22... Bxd8 {[%clk 0:04:04.9]} 23. Rd7 {[%clk 0:03:27.2]} 23... Bf6
{[%clk 0:03:59]} 24. Nd2 {[%clk 0:03:10.5]} 24... Bf5 {[%clk 0:03:45.3]} 25. Rd6
{[%clk 0:03:04.3]} 25... Bc3 {[%clk 0:03:40.7]} 26. Nc4 {[%clk 0:03:00.5]} 26...
b5 {[%clk 0:03:37]} 27. Ne3 {[%clk 0:02:50.6]} 27... Bb1 {[%clk 0:03:29.7]} 28.
a4 {[%clk 0:02:44.5]} 28... b4 {[%clk 0:03:24.4]} 29. Ra6 {[%clk 0:02:39.5]}
29... Ba2 {[%clk 0:03:22.1]} 30. Rxa5 {[%clk 0:02:35.4]} 30... Bxb3 {[%clk
0:03:21.6]} 31. Ra8+ {[%clk 0:02:33.6]} 31... Kg7 {[%clk 0:03:20.3]} 32. a5
{[%clk 0:02:31.6]} 32... Be6 {[%clk 0:03:19.3]} 33. a6 {[%clk 0:02:24.6]} 33...
b3 {[%clk 0:03:16.2]} 34. Rb8 {[%clk 0:02:22.1]} 34... Bd4 {[%clk 0:03:08.4]}
35. Nd1 {[%clk 0:02:12.5]} 35... Kf6 {[%clk 0:02:54.9]} 36. Rb4 {[%clk
0:02:02.8]} 36... Bc5 {[%clk 0:02:50.8]} 37. Rb7 {[%clk 0:01:58.5]} 37... Bd5
{[%clk 0:02:45.9]} 38. Rb5 {[%clk 0:01:56.8]} 38... Bf3 {[%clk 0:02:39.2]} 39.
Rxc5 {[%clk 0:01:43.7]} 39... Bxd1 {[%clk 0:02:37.7]} 40. Rb5 {[%clk 0:01:42.3]}
40... Bf3 {[%clk 0:02:34.5]} 41. Rxb3 {[%clk 0:01:39.9]} 1-0

[Event "Live Chess"]
[Site "Chess.com"]
[Date "2023.05.21"]
[Round "-"]
[White "zdanevych"]
[Black "Conradical12"]
[Result "0-1"]
[WhiteElo "1498"]
[BlackElo "1581"]
[TimeControl "300"]
[EndTime "6:40:28 PDT"]
[Termination "Conradical12 won by checkmate"]

1. d4 {[%clk 0:04:59.2]} 1... d5 {[%clk 0:04:58.1]} 2. c4 {[%clk 0:04:58.5]}
2... c6 {[%clk 0:04:56.5]} 3. Nc3 {[%clk 0:04:55.7]} 3... Nf6 {[%clk 0:04:55.9]}
4. cxd5 {[%clk 0:04:54]} 4... cxd5 {[%clk 0:04:53.1]} 5. Nf3 {[%clk 0:04:52.9]}
5... Nc6 {[%clk 0:04:50.9]} 6. h3 {[%clk 0:04:52.2]} 6... Bf5 {[%clk 0:04:50]}
7. a3 {[%clk 0:04:49.7]} 7... Qb6 {[%clk 0:04:46.5]} 8. e3 {[%clk 0:04:44.3]}
8... O-O-O {[%clk 0:04:44]} 9. b4 {[%clk 0:04:43]} 9... e6 {[%clk 0:04:41]} 10.
Be2 {[%clk 0:04:29.7]} 10... Bd6 {[%clk 0:04:37.6]} 11. O-O {[%clk 0:04:28.5]}
11... h5 {[%clk 0:04:34.8]} 12. Na4 {[%clk 0:04:27.4]} 12... Qc7 {[%clk
0:04:32.5]} 13. Nc5 {[%clk 0:04:24.6]} 13... Bxc5 {[%clk 0:04:30.3]} 14. bxc5
{[%clk 0:04:23]} 14... Ne4 {[%clk 0:04:17]} 15. Bd2 {[%clk 0:04:14.9]} 15... g5
{[%clk 0:04:14.4]} 16. Nh2 {[%clk 0:04:05.9]} 16... g4 {[%clk 0:04:11.4]} 17.
hxg4 {[%clk 0:04:02.9]} 17... hxg4 {[%clk 0:04:09.1]} 18. Bxg4 {[%clk 0:04:00]}
18... Qxh2# {[%clk 0:04:06.9]} 0-1